fUSD/lending_fUSD_20250105
["ID","MTS","AMOUNT","RATE_DAILY","PERIOD"]
[347732505,1736086271204,-694.64,9.589e-05,2]
[347732506,1736086271213,-765.41,9.589e-05,2]
[347732507,1736086271223,-1305.75,9.589e-05,2]
[347732508,1736086271233,-636.94,9.589e-05,2]
[347732509,1736086271246,-1082.12,9.589e-05,2]
[347732510,1736086271256,-1333.19,9.589e-05,2]
[347732511,1736086271266,-500.0,9.589e-05,2]
[347732512,1736086271275,-791.96,9.589e-05,2]
[347732513,1736086271286,-647.45,9.589e-05,2]
[347732514,1736086271295,-500.0,9.589e-05,2]
[347732515,1736086271304,-500.0,9.589e-05,2]
[347732516,1736086271315,-906.7,9.589e-05,2]
[347732517,1736086271325,-513.23,9.589e-05,2]
[347732518,1736086271335,-500.0,9.589e-05,2]
[347732519,1736086271344,-744.9,9.589e-05,2]
[347732520,1736086271354,-500.0,9.589e-05,2]
[347732521,1736086271364,-973.52,9.589e-05,2]
[347732522,1736086271375,-500.0,9.589e-05,2]
[347732523,1736086271384,-752.87,9.589e-05,2]
[347732524,1736086271394,-4352.47,9.589e-05,2]
[347732525,1736086271403,-616.35,9.589e-05,2]
[347732526,1736086271413,-1428.44,9.589e-05,2]
[347732527,1736086271423,-1510.34,9.589e-05,2]
[347732528,1736086271432,-746.25,9.589e-05,2]
[347732529,1736086271441,-500.0,9.589e-05,2]
[347732530,1736086271451,-918.71,9.589e-05,2]
[347732531,1736086271460,-500.0,9.589e-05,2]
[347732532,1736086271470,-1062.74,9.589e-05,2]
[347732533,1736086271480,-500.0,9.589e-05,2]
[347732534,1736086271489,-864.92,9.589e-05,2]
[347732535,1736086271499,-500.0,9.589e-05,2]
[347732536,1736086271508,-505.07,9.589e-05,2]
[347732537,1736086271518,-500.0,9.589e-05,2]
[347732538,1736086271527,-1359.22,9.589e-05,2]
[347732539,1736086271537,-500.0,9.589e-05,2]
[347732540,1736086271547,-500.0,9.589e-05,2]
[347732541,1736086271556,-1013.07,9.589e-05,2]
[347732542,1736086271566,-1387.03,9.589e-05,2]
[347732543,1736086271575,-500.0,9.589e-05,2]
[347732544,1736086271585,-921.41,9.589e-05,2]
[347732545,1736086271595,-800.67,9.589e-05,2]
[347732546,1736086271604,-500.0,9.589e-05,2]
[347732547,1736086271614,-500.0,9.589e-05,2]
[347732548,1736086271624,-781.43,9.589e-05,2]
[347732549,1736086271633,-1250.77,9.589e-05,2]
[347732550,1736086271643,-500.0,9.589e-05,2]
[347732551,1736086271651,-766.06,9.589e-05,2]
[347732552,1736086271660,-955.76,9.589e-05,2]
[347732553,1736086271670,-620.83,9.589e-05,2]
[347732554,1736086271679,-838.48,9.589e-05,2]
[347732555,1736086271688,-809.23,9.589e-05,2]
[347732556,1736086271697,-897.32,9.589e-05,2]
[347732557,1736086271707,-907.19,9.589e-05,2]
[347732558,1736086271716,-500.0,9.589e-05,2]
[347732559,1736086271725,-658.24,9.589e-05,2]
[347732560,1736086271808,-500.0,9.589e-05,2]
[347732561,1736086271817,-1245.35,9.589e-05,2]
[347732562,1736086271826,-853.22,9.589e-05,2]
[347732563,1736086271835,-871.01,9.589e-05,2]
[347732564,1736086271844,-744.7,9.589e-05,2]
[347732565,1736086271854,-1600.74,9.589e-05,2]
[347732566,1736086271864,-500.0,9.589e-05,2]
[347732567,1736086271875,-593.39,9.589e-05,2]
[347732568,1736086271884,-500.0,9.589e-05,2]
[347732569,1736086271893,-500.0,9.589e-05,2]
[347732570,1736086271903,-1032.01,9.589e-05,2]
[347732571,1736086271912,-1063.17,9.589e-05,2]
[347732572,1736086271922,-2363.51,9.589e-05,2]
[347732573,1736086271931,-500.0,9.589e-05,2]
[347732574,1736086271941,-500.0,9.589e-05,2]
[347732575,1736086271950,-1177.99,9.589e-05,2]
[347732576,1736086271959,-1161.66,9.589e-05,2]
[347732577,1736086271969,-753.28,9.589e-05,2]
[347732578,1736086271978,-500.0,9.589e-05,2]
[347732579,1736086271987,-1107.81,9.589e-05,2]
[347732580,1736086271996,-978.31,9.589e-05,2]
[347732581,1736086272005,-607.43,9.589e-05,2]
[347732582,1736086272014,-500.0,9.589e-05,2]
[347732583,1736086272023,-802.04,9.589e-05,2]
[347732584,1736086272032,-500.0,9.589e-05,2]
[347732585,1736086272041,-622.25,9.589e-05,2]
[347732586,1736086272050,-1694.51,9.589e-05,2]
[347732587,1736086272058,-500.0,9.589e-05,2]
[347732588,1736086272066,-500.0,9.589e-05,2]
[347732589,1736086272075,-1454.15,9.589e-05,2]
[347732590,1736086272085,-1459.27,9.589e-05,2]
[347732591,1736086272094,-500.0,9.589e-05,2]
[347732592,1736086272103,-500.0,9.589e-05,2]
[347732593,1736086272113,-500.0,9.589e-05,2]
[347732594,1736086272123,-500.0,9.589e-05,2]
[347732595,1736086272132,-897.95,9.589e-05,2]
[347732596,1736086272142,-690.36,9.589e-05,2]
[347732597,1736086272151,-1009.99,9.589e-05,2]
[347732598,1736086272161,-500.0,9.589e-05,2]
[347732599,1736086272170,-1353.36,9.589e-05,2]
[347732600,1736086272179,-500.0,9.589e-05,2]
[347732601,1736086272189,-500.0,9.589e-05,2]
[347732602,1736086272198,-1505.77,9.589e-05,2]
[347732603,1736086272207,-877.09,9.589e-05,2]
[347732604,1736086272217,-500.0,9.589e-05,2]
[347732605,1736086272226,-500.0,9.589e-05,2]
[347732606,1736086272236,-673.85,9.589e-05,2]
[347732607,1736086272248,-500.0,9.589e-05,2]
[347732608,1736086272256,-1520.95,9.589e-05,2]
[347732609,1736086272265,-640.51,9.589e-05,2]
[347732610,1736086272275,-500.0,9.589e-05,2]
[347732611,1736086272286,-1468.66,9.589e-05,2]
[347732612,1736086272295,-792.2,9.589e-05,2]
[347732613,1736086272304,-500.0,9.589e-05,2]
[347732614,1736086272313,-1958.42,9.589e-05,2]
[347732615,1736086272323,-500.0,9.589e-05,2]
[347732616,1736086272332,-500.0,9.589e-05,2]
[347732617,1736086272341,-733.58,9.589e-05,2]
[347732618,1736086272351,-597.04,9.589e-05,2]
[347732619,1736086272360,-500.0,9.589e-05,2]
[347732620,1736086272369,-876.17,9.589e-05,2]
[347732621,1736086272379,-500.0,9.589e-05,2]
[347732622,1736086272388,-500.0,9.589e-05,2]
[347732623,1736086272398,-1788.82,9.589e-05,2]
[347732624,1736086272407,-760.3,9.589e-05,2]
[347732625,1736086272417,-772.33,9.589e-05,2]
[347732626,1736086272426,-767.2,9.589e-05,2]
[347732627,1736086272436,-3274.7,9.589e-05,2]
[347732628,1736086272445,-500.0,9.589e-05,2]
[347732629,1736086272454,-500.0,9.589e-05,2]
[347732630,1736086272464,-757.59,9.589e-05,2]
[347732631,1736086272474,-940.87,9.589e-05,2]
[347732632,1736086272484,-664.98,9.589e-05,2]
[347732633,1736086272494,-500.0,9.589e-05,2]
[347732634,1736086272503,-500.0,9.589e-05,2]
[347732635,1736086272512,-500.0,9.589e-05,2]
[347732636,1736086272521,-1703.87,9.589e-05,2]
[347732637,1736086272531,-2197.06,9.589e-05,2]
[347732638,1736086272540,-500.0,9.589e-05,2]
[347732639,1736086272550,-500.0,9.589e-05,2]
[347732640,1736086272559,-899.43,9.589e-05,2]
[347732641,1736086272569,-2373.8,9.589e-05,2]
[347732642,1736086272579,-1005.15,9.589e-05,2]
[347732643,1736086272588,-508.31,9.589e-05,2]
[347732644,1736086272598,-500.0,9.589e-05,2]
[347732645,1736086272607,-500.0,9.589e-05,2]
[347732646,1736086272616,-500.0,9.589e-05,2]
[347732647,1736086272627,-500.0,9.589e-05,2]
[347732648,1736086272639,-500.0,9.589e-05,2]
[347732649,1736086272649,-500.0,9.589e-05,2]
[347732650,1736086272658,-911.64,9.589e-05,2]
[347732651,1736086272668,-2174.62,9.589e-05,2]
[347732652,1736086272677,-2889.58,9.589e-05,2]
[347732653,1736086272687,-1428.62,9.589e-05,2]
[347732654,1736086272696,-655.98,9.589e-05,2]
[347732655,1736086272706,-500.0,9.589e-05,2]
[347732656,1736086272715,-500.0,9.589e-05,2]
[347732657,1736086272724,-500.0,9.589e-05,2]
[347732658,1736086272734,-704.61,9.589e-05,2]
[347732659,1736086272744,-901.88,9.589e-05,2]
[347732660,1736086272753,-599.03,9.589e-05,2]
[347732661,1736086272762,-1497.71,9.589e-05,2]
[347732662,1736086272771,-500.0,9.589e-05,2]
[347732663,1736086272781,-500.0,9.589e-05,2]
[347732664,1736086272790,-1229.08,9.589e-05,2]
[347732665,1736086272800,-500.0,9.589e-05,2]
[347732666,1736086272809,-589.79,9.589e-05,2]
[347732667,1736086272819,-500.0,9.589e-05,2]
[347732668,1736086272828,-2359.51,9.589e-05,2]
[347732669,1736086272837,-500.0,9.589e-05,2]
[347732670,1736086272846,-205.27356692,9.589e-05,2]
[347732671,1736086272856,-2408.08,9.589e-05,2]
[347732672,1736086272865,-560.21,9.589e-05,2]
[347732673,1736086272875,-1581.41,9.589e-05,2]
[347732674,1736086272885,-500.0,9.589e-05,2]
[347732675,1736086272894,-638.7,9.589e-05,2]
[347732676,1736086272904,-500.0,9.589e-05,2]
[347732677,1736086272913,-500.0,9.589e-05,2]
[347732678,1736086272923,-1032.99,9.589e-05,2]
[347732679,1736086272932,-311.21,9.589e-05,2]
[347732680,1736086272940,-3209.15,9.589e-05,2]
[347732681,1736086272950,-837.18,9.589e-05,2]
[347732682,1736086272959,-1042.34,9.589e-05,2]
[347732683,1736086272969,-1100.95,9.589e-05,2]
[347732684,1736086272978,-504.24,9.589e-05,2]
[347732685,1736086272988,-500.0,9.589e-05,2]
[347732686,1736086272997,-500.0,9.589e-05,2]
[347732687,1736086273006,-974.42,9.589e-05,2]
[347732688,1736086273016,-1178.04,9.589e-05,2]
[347732689,1736086273025,-1049.33,9.589e-05,2]
[347732690,1736086273035,-1961.68,9.589e-05,2]
[347732691,1736086273045,-500.0,9.589e-05,2]
[347732692,1736086273055,-1749.25,9.589e-05,2]
[347732693,1736086273065,-930.1,9.589e-05,2]
[347732694,1736086273075,-500.0,9.589e-05,2]
[347732695,1736086273085,-1008.32,9.589e-05,2]
[347732696,1736086273095,-500.0,9.589e-05,2]
[347732697,1736086273104,-500.0,9.589e-05,2]
[347732698,1736086273114,-683.59,9.589e-05,2]
[347732699,1736086273124,-500.0,9.589e-05,2]
[347732700,1736086273133,-500.0,9.589e-05,2]
[347732701,1736086273143,-500.0,9.589e-05,2]
[347732702,1736086273152,-1412.79,9.589e-05,2]
[347732703,1736086273163,-412.22332377,9.589e-05,2]
[347732704,1736086273172,-832.75,9.589e-05,2]
[347732705,1736086273181,-500.0,9.589e-05,2]
[347732706,1736086273190,-822.24,9.589e-05,2]
[347732707,1736086273200,-2825.82,9.589e-05,2]
[347732708,1736086273209,-500.0,9.589e-05,2]
[347732709,1736086273219,-500.0,9.589e-05,2]
[347732710,1736086273228,-1523.287914,9.589e-05,2]
[347732711,1736086273238,-500.0,9.589e-05,2]
[347732712,1736086273249,-500.0,9.589e-05,2]
[347732713,1736086273258,-589.48,9.589e-05,2]
[347732714,1736086273267,-500.0,9.589e-05,2]
[347732715,1736086273277,-870.32,9.589e-05,2]
[347732716,1736086273286,-1678.38,9.589e-05,2]
[347732717,1736086273296,-855.83,9.589e-05,2]
[347732718,1736086273305,-511.8,9.589e-05,2]
[347732719,1736086273315,-3147.42,9.589e-05,2]
[347732720,1736086273324,-500.0,9.589e-05,2]
[347732721,1736086273333,-905.92,9.589e-05,2]
[347732722,1736086273343,-500.0,9.589e-05,2]
[347732723,1736086273351,-500.0,9.589e-05,2]
[347732724,1736086273360,-835.26,9.589e-05,2]
[347732725,1736086273371,-500.0,9.589e-05,2]
[347732726,1736086273382,-815.39,9.589e-05,2]
[347732727,1736086273391,-919.05,9.589e-05,2]
[347732728,1736086273400,-521.7,9.589e-05,2]
[347732729,1736086273409,-632.46,9.589e-05,2]
[347732730,1736086273419,-500.0,9.589e-05,2]
[347732731,1736086273428,-1525.261953,9.589e-05,2]
[347732732,1736086273438,-500.0,9.589e-05,2]
[347732733,1736086273447,-1035.87,9.589e-05,2]
[347732734,1736086273457,-584.83542304,9.589e-05,2]
[347732735,1736086273467,-517.08,9.589e-05,2]
[347732736,1736086273476,-932.91,9.589e-05,2]
[347732737,1736086273486,-500.0,9.589e-05,2]
[347732738,1736086273495,-650.48,9.589e-05,2]
[347732739,1736086273504,-1005.75,9.589e-05,2]
[347732740,1736086273514,-500.0,9.589e-05,2]
[347732741,1736086273523,-500.0,9.589e-05,2]
[347732742,1736086273533,-1429.58,9.589e-05,2]
[347732743,1736086273542,-1158.29,9.589e-05,2]
[347732744,1736086273552,-529.27,9.589e-05,2]
[347732745,1736086273562,-519.69,9.589e-05,2]
[347732746,1736086273571,-500.0,9.589e-05,2]
[347732747,1736086273580,-2958.09,9.589e-05,2]
[347732748,1736086273590,-1200.34,9.589e-05,2]
[347732749,1736086273599,-1501.22,9.589e-05,2]
[347732750,1736086273608,-500.0,9.589e-05,2]
[347732751,1736086273618,-5860.52,9.589e-05,2]
[347732752,1736086273627,-977.58,9.589e-05,2]
[347732753,1736086273637,-500.0,9.589e-05,2]
[347732754,1736086273646,-500.0,9.589e-05,2]
[347732755,1736086273655,-3536.32,9.589e-05,2]
[347732756,1736086273665,-678.69,9.589e-05,2]
[347732757,1736086273674,-628.69,9.589e-05,2]
[347732758,1736086273683,-3332.56,9.589e-05,2]
[347732759,1736086273692,-500.0,9.589e-05,2]
[347732760,1736086273701,-1935.77,9.589e-05,2]
[347732761,1736086273710,-500.0,9.589e-05,2]
[347732762,1736086273719,-504.51,9.589e-05,2]
[347732763,1736086273729,-879.4,9.589e-05,2]
[347732764,1736086273738,-1630.51,9.589e-05,2]
[347732765,1736086273748,-1311.86,9.589e-05,2]
[347732766,1736086273758,-519.6,9.589e-05,2]
[347732767,1736086273767,-500.0,9.589e-05,2]
[347732768,1736086273778,-9308.75,9.589e-05,2]
[347732769,1736086273788,-1213.07,9.589e-05,2]
[347732770,1736086273798,-500.0,9.589e-05,2]
[347732771,1736086273808,-500.0,9.589e-05,2]
[347732772,1736086273820,-151.455068,9.589e-05,2]
[347732773,1736086273830,-4669.0,9.589e-05,2]
[347732774,1736086273840,-3435.58,9.589e-05,2]
[347732775,1736086273850,-1489.62,9.589e-05,2]
[347732776,1736086273860,-1597.97,9.589e-05,2]
[347732777,1736086273871,-5012.35,9.589e-05,2]
[347732778,1736086273882,-1263.16,9.589e-05,2]
[347732779,1736086273892,-2078.73,9.589e-05,2]
[347732780,1736086273902,-500.0,9.589e-05,2]
[347732781,1736086273911,-500.0,9.589e-05,2]
[347732782,1736086273922,-500.0,9.589e-05,2]
[347732783,1736086273932,-2864.48,9.589e-05,2]
[347732784,1736086273942,-1249.3,9.589e-05,2]
[347732785,1736086273952,-513.24,9.589e-05,2]
[347732786,1736086273962,-2311.19,9.589e-05,2]
[347732787,1736086273972,-1964.09,9.589e-05,2]
[347732788,1736086273982,-2634.69,9.589e-05,2]
[347732789,1736086273993,-1657.78,9.589e-05,2]
[347732790,1736086274003,-574.02,9.589e-05,2]
[347732791,1736086274012,-500.0,9.589e-05,2]
[347732792,1736086274022,-5089.6,9.589e-05,2]
[347732793,1736086274032,-721.81,9.589e-05,2]
[347732794,1736086274042,-500.0,9.589e-05,2]
[347732795,1736086274052,-500.0,9.589e-05,2]
[347732796,1736086274062,-500.0,9.589e-05,2]
[347732797,1736086274072,-500.0,9.589e-05,2]
[347732798,1736086274083,-2656.05,9.589e-05,2]
[347732799,1736086274094,-16233.05,9.589e-05,2]
[347732800,1736086274105,-500.0,9.589e-05,2]
[347732801,1736086274114,-3323.05,9.589e-05,2]
[347732802,1736086274124,-500.0,9.589e-05,2]
[347732803,1736086274134,-952.05,9.589e-05,2]
[347732804,1736086274145,-6311.87,9.589e-05,2]
[347732805,1736086274155,-500.0,9.589e-05,2]
[347732806,1736086274164,-500.0,9.589e-05,2]
[347732807,1736086274174,-500.0,9.589e-05,2]
[347732808,1736086274184,-500.0,9.589e-05,2]
[347732809,1736086274194,-2832.75,9.589e-05,2]
[347732810,1736086274203,-1869.42,9.589e-05,2]
[347732811,1736086274213,-500.0,9.589e-05,2]
[347732812,1736086274222,-500.0,9.589e-05,2]
[347732813,1736086274233,-994.54,9.589e-05,2]
[347732814,1736086274247,-500.0,9.589e-05,2]
[347732815,1736086274257,-1239.18,9.589e-05,2]
[347732816,1736086274267,-500.0,9.589e-05,2]
[347732817,1736086274277,-1009.28,9.589e-05,2]
[347732818,1736086274290,-1207.47,9.589e-05,2]
[347732819,1736086274300,-6267.41,9.589e-05,2]
[347732820,1736086274310,-1569.79,9.589e-05,2]
[347732821,1736086274320,-1589.36,9.589e-05,2]
[347732822,1736086274331,-500.0,9.589e-05,2]
[347732823,1736086274340,-500.0,9.589e-05,2]
[347732824,1736086274350,-500.0,9.589e-05,2]
[347732825,1736086274361,-500.0,9.589e-05,2]
[347732826,1736086274370,-1024.17,9.589e-05,2]
[347732827,1736086274381,-2588.57,9.589e-05,2]
[347732828,1736086274391,-896.58,9.589e-05,2]
[347732829,1736086274402,-7016.37,9.589e-05,2]
[347732830,1736086274413,-500.0,9.589e-05,2]
[347732831,1736086274423,-500.0,9.589e-05,2]
[347732832,1736086274434,-671.19,9.589e-05,2]
[347732833,1736086274443,-500.0,9.589e-05,2]
[347732834,1736086274453,-4111.43,9.589e-05,2]
[347732835,1736086274464,-929.79,9.589e-05,2]
[347732836,1736086274474,-4240.05,9.589e-05,2]
[347732837,1736086274484,-605.42,9.589e-05,2]
[347732838,1736086274496,-3907.13,9.589e-05,2]
[347732839,1736086274507,-7031.39,9.589e-05,2]
[347732840,1736086274517,-500.0,9.589e-05,2]
[347732841,1736086274528,-500.0,9.589e-05,2]
[347732842,1736086274538,-790.23,9.589e-05,2]
[347732843,1736086274548,-1387.02,9.589e-05,2]
[347732844,1736086274558,-823.31,9.589e-05,2]
[347732845,1736086274569,-2324.58,9.589e-05,2]
[347732846,1736086274579,-500.0,9.589e-05,2]
[347732847,1736086274589,-500.0,9.589e-05,2]
[347732848,1736086274599,-2252.76,9.589e-05,2]
[347732849,1736086274608,-500.0,9.589e-05,2]
[347732850,1736086274618,-716.23,9.589e-05,2]
[347732851,1736086274629,-331.29768,9.589e-05,2]
[347732852,1736086274639,-3251.01,9.589e-05,2]
[347732853,1736086274649,-1363.75,9.589e-05,2]
[347732854,1736086274659,-500.0,9.589e-05,2]
[347732855,1736086274669,-596.77,9.589e-05,2]
[347732856,1736086274680,-5143.92,9.589e-05,2]
[347732857,1736086274691,-500.0,9.589e-05,2]
[347732858,1736086274701,-500.0,9.589e-05,2]
[347732859,1736086274711,-1331.41,9.589e-05,2]
[347732860,1736086274721,-500.0,9.589e-05,2]
[347732861,1736086274730,-6239.8,9.589e-05,2]
[347732862,1736086274740,-500.0,9.589e-05,2]
[347732863,1736086274750,-8535.66,9.589e-05,2]
[347732864,1736086274760,-6109.07,9.589e-05,2]
[347732865,1736086274769,-3488.16,9.589e-05,2]
[347732866,1736086274779,-2449.34,9.589e-05,2]
[347732867,1736086274789,-500.0,9.589e-05,2]
[347732868,1736086274798,-1868.76,9.589e-05,2]
[347732869,1736086274809,-500.0,9.589e-05,2]
[347732870,1736086274819,-7071.13,9.589e-05,2]
[347732871,1736086274830,-4269.26,9.589e-05,2]
[347732872,1736086274841,-2209.49,9.589e-05,2]
[347732873,1736086274851,-1810.81,9.589e-05,2]
[347732874,1736086274860,-841.79,9.589e-05,2]
[347732875,1736086274871,-1541.47,9.589e-05,2]
[347732876,1736086274880,-3729.17,9.589e-05,2]
[347732877,1736086274890,-1708.96,9.589e-05,2]
[347732878,1736086274901,-2379.7,9.589e-05,2]
[347732879,1736086274912,-500.0,9.589e-05,2]
[347732880,1736086274922,-1654.18,9.589e-05,2]
[347732881,1736086274933,-2051.31,9.589e-05,2]
[347732882,1736086274944,-10522.04,9.589e-05,2]
[347732883,1736086274954,-4321.58,9.589e-05,2]
[347732884,1736086274966,-1819.97,9.589e-05,2]
[347732885,1736086274976,-3465.08,9.589e-05,2]
[347732886,1736086274987,-562.35,9.589e-05,2]
[347732887,1736086274997,-2042.12,9.589e-05,2]
[347732888,1736086275006,-500.0,9.589e-05,2]
[347732889,1736086275017,-945.76,9.589e-05,2]
[347732890,1736086275027,-777.63,9.589e-05,2]
[347732891,1736086275038,-595.33,9.589e-05,2]
[347732892,1736086275048,-500.0,9.589e-05,2]
[347732893,1736086275058,-1666.12,9.589e-05,2]
[347732894,1736086275068,-2741.12,9.589e-05,2]
[347732895,1736086275079,-500.0,9.589e-05,2]
[347732896,1736086275089,-7347.35,9.589e-05,2]
[347732897,1736086275100,-1040.91,9.589e-05,2]
[347732898,1736086275110,-702.43,9.589e-05,2]
[347732899,1736086275120,-989.73,9.589e-05,2]
[347732900,1736086275130,-1063.03,9.589e-05,2]
[347732901,1736086275139,-804.87,9.589e-05,2]
[347732902,1736086275149,-2301.74,9.589e-05,2]
[347732903,1736086275160,-3057.33,9.589e-05,2]
[347732904,1736086275170,-798.46,9.589e-05,2]
[347732905,1736086275180,-1986.58,9.589e-05,2]
[347732906,1736086275190,-500.0,9.589e-05,2]
[347732907,1736086275201,-4392.68,9.589e-05,2]
[347732908,1736086275211,-2929.94,9.589e-05,2]
[347732909,1736086275219,-899.63,9.589e-05,2]
[347732910,1736086275229,-736.62,9.589e-05,2]
[347732911,1736086275242,-956.97,9.589e-05,2]
[347732912,1736086275254,-500.0,9.589e-05,2]
[347732913,1736086275264,-2240.63,9.589e-05,2]
[347732914,1736086275274,-1666.12,9.589e-05,2]
[347732915,1736086275285,-500.0,9.589e-05,2]
[347732916,1736086275295,-3157.56,9.589e-05,2]
[347732917,1736086275305,-1129.82,9.589e-05,2]
[347732918,1736086275315,-1714.77,9.589e-05,2]
[347732919,1736086275326,-500.0,9.589e-05,2]
[347732920,1736086275336,-500.0,9.589e-05,2]
[347732921,1736086275345,-799.02,9.589e-05,2]
[347732922,1736086275356,-500.0,9.589e-05,2]
[347732923,1736086275366,-1112.43,9.589e-05,2]
[347732924,1736086275377,-5906.8,9.589e-05,2]
[347732925,1736086275387,-500.0,9.589e-05,2]
[347732926,1736086275397,-1629.2,9.589e-05,2]
[347732927,1736086275406,-1977.81,9.589e-05,2]
[347732928,1736086275416,-747.98,9.589e-05,2]
[347732929,1736086275426,-1258.69,9.589e-05,2]
[347732930,1736086275436,-1925.38,9.589e-05,2]
[347732931,1736086275446,-1195.92,9.589e-05,2]
[347732932,1736086275456,-468.12,9.602e-05,2]
[347732933,1736086275466,-1057.0,9.662e-05,2]
[347732934,1736086275476,-29999.99,9.67e-05,2]
[347732935,1736086275485,-873.67,9.777e-05,2]
[347732936,1736086275495,-2000.0,9.8e-05,2]
[347732937,1736086275505,-1421.22,9.86e-05,2]
[347732938,1736086275515,-500.0,9.863e-05,2]
[347732939,1736086275524,-500.0,9.863e-05,2]
[347732940,1736086275535,-500.0,9.863e-05,2]
[347732941,1736086275545,-500.0,9.863e-05,2]
[347732942,1736086275554,-690.85,9.863e-05,2]
[347732943,1736086275563,-500.0,9.863e-05,2]
[347732944,1736086275573,-500.0,9.863e-05,2]
[347732945,1736086275583,-500.0,9.863e-05,2]
[347732946,1736086275592,-1085.7,9.863e-05,2]
[347732947,1736086275602,-720.82,9.863e-05,2]
[347732948,1736086275612,-554.43,9.863e-05,2]
[347732949,1736086275622,-500.0,9.863e-05,2]
[347732950,1736086275632,-500.0,9.863e-05,2]
[347732951,1736086275642,-500.0,9.863e-05,2]
[347732952,1736086275651,-500.0,9.863e-05,2]
[347732953,1736086275661,-500.0,9.863e-05,2]
[347732954,1736086275671,-892.7,9.863e-05,2]
[347732955,1736086275681,-531.08,9.863e-05,2]
[347732956,1736086275691,-500.0,9.863e-05,2]
[347732957,1736086275700,-500.0,9.863e-05,2]
[347732958,1736086275710,-500.0,9.863e-05,2]
[347732959,1736086275720,-500.0,9.863e-05,2]
[347732960,1736086275729,-500.0,9.863e-05,2]
[347732961,1736086275739,-500.0,9.863e-05,2]
[347732962,1736086275749,-740.92,9.863e-05,2]
[347732963,1736086275759,-500.0,9.863e-05,2]
[347732964,1736086275769,-500.0,9.863e-05,2]
[347732965,1736086275779,-2696.37,9.863e-05,2]
[347732966,1736086275788,-5172.3,9.863e-05,2]
[347732967,1736086275798,-500.0,9.863e-05,2]
[347732968,1736086275808,-500.0,9.863e-05,2]
[347732969,1736086275818,-500.0,9.863e-05,2]
[347732970,1736086275827,-3610.4,9.863e-05,2]
[347732971,1736086275837,-500.0,9.863e-05,2]
[347732972,1736086275847,-1720.92,9.863e-05,2]
[347732973,1736086275856,-500.0,9.863e-05,2]
[347732974,1736086275866,-500.0,9.863e-05,2]
[347732975,1736086275878,-563.17,9.863e-05,2]
[347732976,1736086275887,-500.0,9.863e-05,2]
[347732977,1736086275899,-9470.22,9.863e-05,2]
[347732978,1736086275909,-826.83,9.863e-05,2]
[347732979,1736086276127,-3794.49,9.863e-05,2]
[347732980,1736086276138,-500.0,9.863e-05,2]
[347732981,1736086276147,-500.0,9.863e-05,2]
[347732982,1736086276157,-6784.81,9.863e-05,2]
[347732983,1736086276166,-500.0,9.863e-05,2]
[347732984,1736086276176,-588.06,9.863e-05,2]
[347732985,1736086276185,-500.0,9.863e-05,2]
[347732986,1736086276195,-500.0,9.863e-05,2]
[347732987,1736086276204,-500.0,9.863e-05,2]
[347732988,1736086276214,-500.0,9.863e-05,2]
[347732989,1736086276223,-794.51,9.863e-05,2]
[347732990,1736086276233,-220.57071372,9.863e-05,2]
[347732991,1736086276245,-500.0,9.863e-05,2]
[347732992,1736086276254,-2104.73,9.863e-05,2]
[347732993,1736086276263,-681.56,9.863e-05,2]
[347732994,1736086276273,-500.0,9.863e-05,2]
[347732995,1736086276284,-500.0,9.863e-05,2]
[347732996,1736086276293,-1028.13,9.863e-05,2]
[347732997,1736086276302,-500.0,9.863e-05,2]
[347732998,1736086276311,-500.0,9.863e-05,2]
[347732999,1736086276322,-799.97,9.863e-05,2]
[347733000,1736086276332,-2275.82,9.863e-05,2]
[347733001,1736086276342,-500.0,9.863e-05,2]
[347733002,1736086276351,-500.0,9.863e-05,2]
[347733003,1736086276361,-4126.42,9.863e-05,2]
[347733004,1736086276371,-2155.22,9.863e-05,2]